[Event "*** Titled Tuesday Blitz"]
[Site "Chess.com"]
[Date "2021.02.02"]
[Round "3"]
[White "guillembaches"]
[Black "Al_Shima"]
[Result "1-0"]
[WhiteElo "2458"]
[BlackElo "2293"]
[TimeControl "180+1"]
[EndTime "10:31:17 PST"]
[Termination "guillembaches won on time"]

1. e4 {[%clk 0:03:00.9]} 1... c5 {[%clk 0:02:53.9]} 2. Nf3 {[%clk 0:03:01]} 2...
d6 {[%clk 0:02:53.7]} 3. d4 {[%clk 0:03:01.3]} 3... cxd4 {[%clk 0:02:54.6]} 4.
Nxd4 {[%clk 0:03:01.6]} 4... Nf6 {[%clk 0:02:55.1]} 5. Nc3 {[%clk 0:03:01.9]}
5... g6 {[%clk 0:02:53.7]} 6. g3 {[%clk 0:03:01.9]} 6... Bg7 {[%clk 0:02:53.5]}
7. Bg2 {[%clk 0:03:02.3]} 7... O-O {[%clk 0:02:53.8]} 8. O-O {[%clk 0:03:02.5]}
8... a6 {[%clk 0:02:50.1]} 9. a4 {[%clk 0:03:01.7]} 9... Nbd7 {[%clk 0:02:42.4]}
10. h3 {[%clk 0:02:58.7]} 10... Ne5 {[%clk 0:02:36.3]} 11. b3 {[%clk 0:02:51.9]}
11... Qc7 {[%clk 0:02:30.9]} 12. Bb2 {[%clk 0:02:47.7]} 12... Bd7 {[%clk
0:02:25.3]} 13. Nd5 {[%clk 0:02:45.4]} 13... Nxd5 {[%clk 0:02:23.1]} 14. exd5
{[%clk 0:02:46.3]} 14... Bc8 {[%clk 0:02:05.1]} 15. Re1 {[%clk 0:02:40.5]} 15...
Re8 {[%clk 0:02:02.6]} 16. c4 {[%clk 0:02:33.1]} 16... Nd7 {[%clk 0:01:56.9]}
17. a5 {[%clk 0:02:24.8]} 17... b6 {[%clk 0:01:41.1]} 18. axb6 {[%clk
0:02:13.2]} 18... Nxb6 {[%clk 0:01:38.7]} 19. Qd2 {[%clk 0:02:07.9]} 19... Bd7
{[%clk 0:01:33.5]} 20. Nc6 {[%clk 0:02:05.2]} 20... Bxc6 {[%clk 0:01:32.7]} 21.
dxc6 {[%clk 0:02:04.3]} 21... Bxb2 {[%clk 0:01:31.5]} 22. Qxb2 {[%clk
0:02:04.3]} 22... Reb8 {[%clk 0:01:09.2]} 23. Qe2 {[%clk 0:01:54.9]} 23... e6
{[%clk 0:01:06.7]} 24. b4 {[%clk 0:01:52.2]} 24... d5 {[%clk 0:00:59.5]} 25.
cxd5 {[%clk 0:01:44.2]} 25... Nxd5 {[%clk 0:00:57.9]} 26. Bxd5 {[%clk
0:01:21.1]} 26... exd5 {[%clk 0:00:57.5]} 27. Rxa6 {[%clk 0:01:20.6]} 27... Rxa6
{[%clk 0:00:56.7]} 28. Qxa6 {[%clk 0:01:20.7]} 28... Rxb4 {[%clk 0:00:37.8]} 29.
Qa3 {[%clk 0:01:16.9]} 29... Re4 {[%clk 0:00:15.8]} 30. Rc1 {[%clk 0:01:11.1]}
30... Re6 {[%clk 0:00:09.4]} 31. Qc5 {[%clk 0:00:53.2]} 31... d4 {[%clk
0:00:09.5]} 32. Ra1 {[%clk 0:00:39.3]} 32... d3 {[%clk 0:00:09.2]} 33. Ra8+
{[%clk 0:00:34.2]} 33... Kg7 {[%clk 0:00:08.4]} 34. Qf8+ {[%clk 0:00:34.3]}
34... Kf6 {[%clk 0:00:08.5]} 35. Qh8+ {[%clk 0:00:34.6]} 35... Kf5 {[%clk
0:00:05.5]} 36. g4+ {[%clk 0:00:32.7]} 36... Ke4 {[%clk 0:00:03.3]} 37. Ra4+
{[%clk 0:00:31.6]} 37... Kf3 {[%clk 0:00:02.4]} 38. Qa1 {[%clk 0:00:29.5]} 38...
d2 {[%clk 0:00:02]} 39. Qd1+ {[%clk 0:00:28.8]} 1-0

[Event "*** Titled Tuesday Blitz"]
[Site "Chess.com"]
[Date "2021.02.02"]
[Round "3"]
[White "strelec64"]
[Black "BL4D3RUNN3R"]
[Result "1-0"]
[WhiteElo "2493"]
[BlackElo "2211"]
[TimeControl "180+1"]
[EndTime "10:31:18 PST"]
[Termination "strelec64 won on time"]

1. d4 {[%clk 0:03:00.9]} 1... Nf6 {[%clk 0:02:56.3]} 2. Nf3 {[%clk 0:03:00]}
2... g6 {[%clk 0:02:56.2]} 3. c4 {[%clk 0:02:59.3]} 3... Bg7 {[%clk 0:02:56.1]}
4. g3 {[%clk 0:02:59]} 4... O-O {[%clk 0:02:55.7]} 5. Bg2 {[%clk 0:02:58.6]}
5... d6 {[%clk 0:02:55.5]} 6. O-O {[%clk 0:02:58]} 6... Nc6 {[%clk 0:02:55.3]}
7. d5 {[%clk 0:02:56.4]} 7... Na5 {[%clk 0:02:54.4]} 8. Nfd2 {[%clk 0:02:56.2]}
8... c5 {[%clk 0:02:53.8]} 9. Nc3 {[%clk 0:02:56]} 9... a6 {[%clk 0:02:50]} 10.
Qc2 {[%clk 0:02:53]} 10... b5 {[%clk 0:02:49.2]} 11. cxb5 {[%clk 0:02:51.4]}
11... axb5 {[%clk 0:02:48.8]} 12. Nxb5 {[%clk 0:02:51.5]} 12... Qb6 {[%clk
0:02:48.1]} 13. Nc3 {[%clk 0:02:51.1]} 13... Bf5 {[%clk 0:02:47.1]} 14. e4
{[%clk 0:02:48.9]} 14... Bc8 {[%clk 0:02:46.5]} 15. b3 {[%clk 0:02:46.3]} 15...
Ba6 {[%clk 0:02:35.3]} 16. Rd1 {[%clk 0:02:40.7]} 16... Ng4 {[%clk 0:02:26.8]}
17. Na4 {[%clk 0:01:55.4]} 17... Qb5 {[%clk 0:02:11.3]} 18. Bb2 {[%clk
0:01:53.8]} 18... Qe2 {[%clk 0:01:44.6]} 19. Rf1 {[%clk 0:01:43.3]} 19... Qd3
{[%clk 0:00:59.6]} 20. Qxd3 {[%clk 0:01:33.8]} 20... Bxd3 {[%clk 0:00:58.1]} 21.
Rfe1 {[%clk 0:01:29.4]} 21... c4 {[%clk 0:00:53.1]} 22. Bxg7 {[%clk 0:01:27.6]}
22... Kxg7 {[%clk 0:00:52.3]} 23. Nb6 {[%clk 0:01:18.7]} 23... Rab8 {[%clk
0:00:24.4]} 24. Nbxc4 {[%clk 0:01:17.2]} 24... Nxc4 {[%clk 0:00:21.5]} 25. Nxc4
{[%clk 0:01:00.1]} 25... Bxc4 {[%clk 0:00:19.9]} 26. bxc4 {[%clk 0:01:00]} 26...
Rb2 {[%clk 0:00:19.2]} 27. Reb1 {[%clk 0:00:52.4]} 27... Rfb8 {[%clk 0:00:09.8]}
28. Rxb2 {[%clk 0:00:49.2]} 28... Rxb2 {[%clk 0:00:09.1]} 29. a4 {[%clk
0:00:48.4]} 29... Nxf2 {[%clk 0:00:08]} 30. a5 {[%clk 0:00:48.3]} 30... Nd3
{[%clk 0:00:07.3]} 31. a6 {[%clk 0:00:48.2]} 31... Rb8 {[%clk 0:00:06.4]} 32. a7
{[%clk 0:00:43.7]} 32... Ra8 {[%clk 0:00:05.9]} 33. Ra5 {[%clk 0:00:29.1]} 33...
Kf6 {[%clk 0:00:04.3]} 34. Bh3 {[%clk 0:00:25]} 34... e6 {[%clk 0:00:02.3]} 35.
dxe6 {[%clk 0:00:24]} 35... fxe6 {[%clk 0:00:02.3]} 36. e5+ {[%clk 0:00:19.5]}
1-0

[Event "*** Titled Tuesday Blitz"]
[Site "Chess.com"]
[Date "2021.02.02"]
[Round "3"]
[White "Arseniy_Nesterov"]
[Black "klimkoj"]
[Result "1-0"]
[WhiteElo "2805"]
[BlackElo "2566"]
[TimeControl "180+1"]
[EndTime "10:31:19 PST"]
[Termination "Arseniy_Nesterov won by resignation"]

1. d4 {[%clk 0:03:00.9]} 1... Nf6 {[%clk 0:02:59.5]} 2. c4 {[%clk 0:03:01.1]}
2... e6 {[%clk 0:02:59.5]} 3. Nf3 {[%clk 0:03:00.7]} 3... Bb4+ {[%clk
0:02:59.1]} 4. Bd2 {[%clk 0:03:00.5]} 4... Qe7 {[%clk 0:02:58.4]} 5. g3 {[%clk
0:03:00.3]} 5... Bxd2+ {[%clk 0:02:56.3]} 6. Nbxd2 {[%clk 0:02:58.7]} 6... d6
{[%clk 0:02:56.4]} 7. Bg2 {[%clk 0:02:57.2]} 7... e5 {[%clk 0:02:54.3]} 8. O-O
{[%clk 0:02:51.2]} 8... O-O {[%clk 0:02:52.8]} 9. Nb1 {[%clk 0:02:48.5]} 9...
Nc6 {[%clk 0:02:35.1]} 10. Nc3 {[%clk 0:02:44.9]} 10... Bg4 {[%clk 0:02:34.4]}
11. d5 {[%clk 0:02:34.4]} 11... Bxf3 {[%clk 0:02:27.2]} 12. Bxf3 {[%clk
0:02:31.1]} 12... Nb8 {[%clk 0:02:04.8]} 13. e4 {[%clk 0:02:16.7]} 13... c5
{[%clk 0:02:02.2]} 14. a3 {[%clk 0:02:14.2]} 14... Nbd7 {[%clk 0:01:59.9]} 15.
b4 {[%clk 0:02:11.9]} 15... cxb4 {[%clk 0:01:47.4]} 16. axb4 {[%clk 0:02:12.8]}
16... Rfc8 {[%clk 0:01:46.7]} 17. Be2 {[%clk 0:02:12]} 17... Nb6 {[%clk
0:01:46.1]} 18. Qb3 {[%clk 0:02:08.9]} 18... a6 {[%clk 0:01:33.3]} 19. Rfc1
{[%clk 0:01:59.5]} 19... Nfd7 {[%clk 0:01:07.9]} 20. Nd1 {[%clk 0:01:51.4]}
20... Nf6 {[%clk 0:01:02.3]} 21. Bd3 {[%clk 0:01:41.2]} 21... Rc7 {[%clk
0:01:01.5]} 22. Ne3 {[%clk 0:01:36.1]} 22... g6 {[%clk 0:00:59.3]} 23. c5 {[%clk
0:01:33.4]} 23... Nbd7 {[%clk 0:00:55.6]} 24. c6 {[%clk 0:01:04.4]} 24... bxc6
{[%clk 0:00:55.1]} 25. Rxc6 {[%clk 0:01:01.2]} 25... Rxc6 {[%clk 0:00:50.2]} 26.
dxc6 {[%clk 0:01:01.2]} 26... Nb6 {[%clk 0:00:48.2]} 27. Rxa6 {[%clk 0:00:54]}
27... Rxa6 {[%clk 0:00:46.6]} 28. Bxa6 {[%clk 0:00:54.9]} 28... Nxe4 {[%clk
0:00:35.8]} 29. Qc2 {[%clk 0:00:48.2]} 29... d5 {[%clk 0:00:26.7]} 30. c7 {[%clk
0:00:41.3]} 30... Qxb4 {[%clk 0:00:20.5]} 31. Nxd5 {[%clk 0:00:33.8]} 31... Qe1+
{[%clk 0:00:18]} 32. Kg2 {[%clk 0:00:33.6]} 32... Nd2 {[%clk 0:00:11.8]} 33.
Nxb6 {[%clk 0:00:24.9]} 33... Ne4 {[%clk 0:00:06.2]} 34. c8=Q+ {[%clk
0:00:23.9]} 34... Kg7 {[%clk 0:00:06.1]} 35. Qe2 {[%clk 0:00:22.7]} 35... Qb4
{[%clk 0:00:04.7]} 36. Qcc4 {[%clk 0:00:22.2]} 36... Qxb6 {[%clk 0:00:04.5]} 37.
Qcxe4 {[%clk 0:00:21.7]} 37... f6 {[%clk 0:00:03.4]} 38. Qb7+ {[%clk 0:00:21.8]}
1-0

[Event "*** Titled Tuesday Blitz"]
[Site "Chess.com"]
[Date "2021.02.02"]
[Round "3"]
[White "BilodeauA"]
[Black "Tartody"]
[Result "1-0"]
[WhiteElo "2875"]
[BlackElo "2636"]
[TimeControl "180+1"]
[EndTime "10:31:20 PST"]
[Termination "BilodeauA won on time"]

1. e4 {[%clk 0:03:00.9]} 1... c6 {[%clk 0:02:59.6]} 2. Nf3 {[%clk 0:03:00.8]}
2... g6 {[%clk 0:02:59.7]} 3. d3 {[%clk 0:03:01.6]} 3... d5 {[%clk 0:02:59.5]}
4. Nc3 {[%clk 0:03:00.4]} 4... Bg7 {[%clk 0:03:00.1]} 5. e5 {[%clk 0:02:59.2]}
5... f6 {[%clk 0:02:57.9]} 6. exf6 {[%clk 0:02:56.4]} 6... exf6 {[%clk
0:02:56.8]} 7. d4 {[%clk 0:02:53.7]} 7... Nh6 {[%clk 0:02:54.3]} 8. Bd3 {[%clk
0:02:53.1]} 8... O-O {[%clk 0:02:48.4]} 9. O-O {[%clk 0:02:53.7]} 9... g5 {[%clk
0:02:22]} 10. Ne2 {[%clk 0:02:48.9]} 10... Bf5 {[%clk 0:02:11]} 11. Ng3 {[%clk
0:02:47]} 11... Bg6 {[%clk 0:02:10.8]} 12. Re1 {[%clk 0:02:40.1]} 12... Na6
{[%clk 0:02:05.2]} 13. c4 {[%clk 0:02:33]} 13... Nc7 {[%clk 0:02:04.4]} 14. h3
{[%clk 0:02:22]} 14... Qd7 {[%clk 0:02:03.2]} 15. Qb3 {[%clk 0:02:13.4]} 15...
b6 {[%clk 0:01:31.2]} 16. Bd2 {[%clk 0:02:12.7]} 16... Rae8 {[%clk 0:01:30.6]}
17. a4 {[%clk 0:02:13.2]} 17... Rxe1+ {[%clk 0:01:27.9]} 18. Rxe1 {[%clk
0:02:14.1]} 18... Re8 {[%clk 0:01:27.8]} 19. Rxe8+ {[%clk 0:02:14.3]} 19... Qxe8
{[%clk 0:01:28.7]} 20. a5 {[%clk 0:02:13.9]} 20... b5 {[%clk 0:01:28.2]} 21.
cxb5 {[%clk 0:02:12.2]} 21... cxb5 {[%clk 0:01:25]} 22. Qc2 {[%clk 0:01:57.8]}
22... Bxd3 {[%clk 0:01:15.2]} 23. Qxd3 {[%clk 0:01:58.7]} 23... Bf8 {[%clk
0:01:08.7]} 24. h4 {[%clk 0:01:40.8]} 24... g4 {[%clk 0:01:06.3]} 25. Nh2 {[%clk
0:01:40.8]} 25... Qe6 {[%clk 0:00:45.4]} 26. Nhf1 {[%clk 0:01:40.5]} 26... a6
{[%clk 0:00:36.3]} 27. Bf4 {[%clk 0:01:35]} 27... Ne8 {[%clk 0:00:35.5]} 28. Ne3
{[%clk 0:01:34.8]} 28... Nd6 {[%clk 0:00:33.5]} 29. b3 {[%clk 0:01:27.1]} 29...
Nhf7 {[%clk 0:00:31.7]} 30. Qe2 {[%clk 0:01:18]} 30... Bh6 {[%clk 0:00:18.1]}
31. Nxg4 {[%clk 0:00:59.6]} 31... Qxe2 {[%clk 0:00:15]} 32. Nxh6+ {[%clk
0:01:00.2]} 32... Nxh6 {[%clk 0:00:15.6]} 33. Nxe2 {[%clk 0:01:01.1]} 33... Nhf7
{[%clk 0:00:12.2]} 34. Nc3 {[%clk 0:00:56.6]} 34... Nf5 {[%clk 0:00:11.9]} 35.
Nxb5 {[%clk 0:00:37.8]} 35... Nd8 {[%clk 0:00:11.6]} 36. Nc7 {[%clk 0:00:35.5]}
36... Nxd4 {[%clk 0:00:10.8]} 37. b4 {[%clk 0:00:36.2]} 37... Ne2+ {[%clk
0:00:08.8]} 38. Kf1 {[%clk 0:00:35.9]} 38... Nxf4 {[%clk 0:00:09.7]} 39. Nxa6
{[%clk 0:00:36.6]} 39... Nb7 {[%clk 0:00:09]} 40. Nc7 {[%clk 0:00:33.3]} 40...
Nd6 {[%clk 0:00:04.1]} 41. a6 {[%clk 0:00:32.2]} 41... Nc8 {[%clk 0:00:04.4]}
42. b5 {[%clk 0:00:31.2]} 42... Nd3 {[%clk 0:00:04.6]} 43. Nxd5 {[%clk
0:00:30.6]} 43... Nc5 {[%clk 0:00:01.7]} 44. Ne7+ {[%clk 0:00:30.5]} 1-0

[Event "*** Titled Tuesday Blitz"]
[Site "Chess.com"]
[Date "2021.02.02"]
[Round "3"]
[White "Djager97"]
[Black "benko_008"]
[Result "1-0"]
[WhiteElo "2575"]
[BlackElo "2381"]
[TimeControl "180+1"]
[EndTime "10:31:20 PST"]
[Termination "Djager97 won on time"]

1. e4 {[%clk 0:03:00.9]} 1... c5 {[%clk 0:02:58.4]} 2. Nf3 {[%clk 0:03:01.4]}
2... e6 {[%clk 0:02:58.2]} 3. d4 {[%clk 0:03:01.9]} 3... cxd4 {[%clk 0:02:58.3]}
4. Nxd4 {[%clk 0:03:02.8]} 4... a6 {[%clk 0:02:56.8]} 5. Nc3 {[%clk 0:03:02.8]}
5... b5 {[%clk 0:02:55.8]} 6. Bd3 {[%clk 0:02:57.7]} 6... Bb7 {[%clk 0:02:55.6]}
7. O-O {[%clk 0:02:54.3]} 7... d6 {[%clk 0:02:52.6]} 8. Kh1 {[%clk 0:02:40]}
8... Nf6 {[%clk 0:02:52.2]} 9. a3 {[%clk 0:02:29.6]} 9... Nbd7 {[%clk
0:02:51.1]} 10. f4 {[%clk 0:02:29.9]} 10... Rc8 {[%clk 0:02:49.3]} 11. Qf3
{[%clk 0:02:29.4]} 11... Be7 {[%clk 0:02:20.2]} 12. Bd2 {[%clk 0:02:28.7]} 12...
O-O {[%clk 0:02:15.6]} 13. Rae1 {[%clk 0:02:29.2]} 13... Nc5 {[%clk 0:02:08.2]}
14. b4 {[%clk 0:02:24.6]} 14... Nxd3 {[%clk 0:02:06.2]} 15. cxd3 {[%clk
0:02:25.5]} 15... Nd7 {[%clk 0:01:53.6]} 16. f5 {[%clk 0:02:19.6]} 16... e5
{[%clk 0:01:48.7]} 17. f6 {[%clk 0:01:55.4]} 17... Bxf6 {[%clk 0:01:32.8]} 18.
Nf5 {[%clk 0:01:54.8]} 18... Nb6 {[%clk 0:01:29.5]} 19. Qg4 {[%clk 0:01:47.7]}
19... Kh8 {[%clk 0:01:24.5]} 20. Rf3 {[%clk 0:01:41.3]} 20... Qd7 {[%clk
0:00:52.9]} 21. Rh3 {[%clk 0:01:34.6]} 21... g6 {[%clk 0:00:52.3]} 22. Be3
{[%clk 0:01:14]} 22... Rxc3 {[%clk 0:00:49.1]} 23. Bxb6 {[%clk 0:01:11.8]} 23...
d5 {[%clk 0:00:42.6]} 24. Rxh7+ {[%clk 0:01:05.3]} 24... Kxh7 {[%clk 0:00:36]}
25. Qh3+ {[%clk 0:01:05.6]} 25... Kg8 {[%clk 0:00:33.8]} 26. Nh6+ {[%clk
0:01:04.5]} 26... Kg7 {[%clk 0:00:34]} 27. Qxd7 {[%clk 0:01:04.4]} 27... Bc8
{[%clk 0:00:26.1]} 28. Qd6 {[%clk 0:00:53.6]} 28... Rxd3 {[%clk 0:00:25.9]} 29.
exd5 {[%clk 0:00:46]} 29... e4 {[%clk 0:00:22.6]} 30. Rf1 {[%clk 0:00:44.1]}
30... Bc3 {[%clk 0:00:18.6]} 31. h3 {[%clk 0:00:35.6]} 31... Bxh3 {[%clk
0:00:16]} 32. Nxf7 {[%clk 0:00:27.3]} 32... Bf5 {[%clk 0:00:08]} 33. Ne5 {[%clk
0:00:19.7]} 33... Rh8+ {[%clk 0:00:05.5]} 34. Kg1 {[%clk 0:00:20.2]} 34... Rd2
{[%clk 0:00:02.7]} 35. Qe7+ {[%clk 0:00:20.5]} 35... Kh6 {[%clk 0:00:02.4]} 36.
Be3+ {[%clk 0:00:20.2]} 1-0

[Event "*** Titled Tuesday Blitz"]
[Site "Chess.com"]
[Date "2021.02.02"]
[Round "3"]
[White "Cambek64"]
[Black "MFBerna"]
[Result "0-1"]
[WhiteElo "2279"]
[BlackElo "2508"]
[TimeControl "180+1"]
[EndTime "10:31:20 PST"]
[Termination "MFBerna won by resignation"]

1. b3 {[%clk 0:02:59.1]} 1... d5 {[%clk 0:02:59.6]} 2. Bb2 {[%clk 0:02:59.6]}
2... Nf6 {[%clk 0:03:00.1]} 3. e3 {[%clk 0:02:59.9]} 3... c5 {[%clk 0:03:00.3]}
4. f4 {[%clk 0:02:57.8]} 4... Nc6 {[%clk 0:03:00.2]} 5. Nf3 {[%clk 0:02:58.1]}
5... g6 {[%clk 0:03:00.6]} 6. Bb5 {[%clk 0:02:50.1]} 6... Bd7 {[%clk 0:02:59.4]}
7. Bxc6 {[%clk 0:02:47.5]} 7... Bxc6 {[%clk 0:02:59.3]} 8. O-O {[%clk
0:02:45.4]} 8... Bg7 {[%clk 0:02:59.1]} 9. Ne5 {[%clk 0:02:45]} 9... Rc8 {[%clk
0:02:59.2]} 10. d3 {[%clk 0:02:44.3]} 10... O-O {[%clk 0:02:59.4]} 11. Nd2
{[%clk 0:02:43.8]} 11... Ne8 {[%clk 0:02:53.2]} 12. Nxc6 {[%clk 0:02:42.2]}
12... Rxc6 {[%clk 0:02:54.1]} 13. Bxg7 {[%clk 0:02:41.8]} 13... Kxg7 {[%clk
0:02:55]} 14. Qc1 {[%clk 0:02:41]} 14... Nf6 {[%clk 0:02:54.6]} 15. Nf3 {[%clk
0:02:38.1]} 15... c4 {[%clk 0:02:35.2]} 16. bxc4 {[%clk 0:02:36.1]} 16... dxc4
{[%clk 0:02:35.2]} 17. Ne5 {[%clk 0:02:36.7]} 17... Rc8 {[%clk 0:02:34.8]} 18.
Nxc4 {[%clk 0:02:35.8]} 18... b5 {[%clk 0:02:33.5]} 19. Ne5 {[%clk 0:02:34.2]}
19... Qb6 {[%clk 0:02:33.5]} 20. Qd2 {[%clk 0:02:22.5]} 20... Nd5 {[%clk
0:02:30.5]} 21. Rf3 {[%clk 0:01:56.6]} 21... Rfd8 {[%clk 0:02:30.3]} 22. f5
{[%clk 0:01:33.3]} 22... Qc7 {[%clk 0:02:25]} 23. Nxf7 {[%clk 0:01:19.5]} 23...
Kxf7 {[%clk 0:02:22]} 24. fxg6+ {[%clk 0:01:19.9]} 24... Kxg6 {[%clk 0:02:22.3]}
25. Raf1 {[%clk 0:01:11.1]} 25... Nf6 {[%clk 0:02:18.3]} 26. Qf2 {[%clk
0:01:02.6]} 26... Kg7 {[%clk 0:02:06.6]} 27. Rxf6 {[%clk 0:00:56.2]} 27... exf6
{[%clk 0:02:02.8]} 28. Qxf6+ {[%clk 0:00:56.2]} 28... Kg8 {[%clk 0:02:03.3]} 29.
Qe6+ {[%clk 0:00:54.6]} 29... Kh8 {[%clk 0:02:03]} 30. Rf7 {[%clk 0:00:28.2]}
30... Qc3 {[%clk 0:01:19.5]} 31. h3 {[%clk 0:00:19.2]} 31... Rf8 {[%clk
0:00:47.2]} 32. Rxa7 {[%clk 0:00:11.7]} 32... Rg8 {[%clk 0:00:16.3]} 33. Qd7
{[%clk 0:00:08.7]} 33... Qe1+ {[%clk 0:00:13.3]} 34. Kh2 {[%clk 0:00:08]} 34...
Qg3+ {[%clk 0:00:13.9]} 0-1

[Event "*** Titled Tuesday Blitz"]
[Site "Chess.com"]
[Date "2021.02.02"]
[Round "3"]
[White "MVM2008"]
[Black "karinachess1"]
[Result "0-1"]
[WhiteElo "2120"]
[BlackElo "2479"]
[TimeControl "180+1"]
[EndTime "10:31:20 PST"]
[Termination "karinachess1 won by checkmate"]

1. e4 {[%clk 0:03:00.9]} 1... c5 {[%clk 0:02:55.5]} 2. Nf3 {[%clk 0:03:00.8]}
2... e6 {[%clk 0:02:55.2]} 3. d4 {[%clk 0:03:01.4]} 3... cxd4 {[%clk 0:02:56.1]}
4. Nxd4 {[%clk 0:03:02.1]} 4... a6 {[%clk 0:02:56.5]} 5. Nc3 {[%clk 0:03:01.6]}
5... Qc7 {[%clk 0:02:56.1]} 6. a3 {[%clk 0:03:01.4]} 6... Nf6 {[%clk 0:02:56.2]}
7. f4 {[%clk 0:02:59.7]} 7... d6 {[%clk 0:02:50.8]} 8. Be3 {[%clk 0:02:59.7]}
8... Be7 {[%clk 0:02:50.6]} 9. g4 {[%clk 0:02:47.1]} 9... b5 {[%clk 0:02:49.9]}
10. g5 {[%clk 0:02:46.9]} 10... Nfd7 {[%clk 0:02:50.3]} 11. Qf3 {[%clk
0:02:06.9]} 11... Bb7 {[%clk 0:02:50]} 12. O-O-O {[%clk 0:02:06.7]} 12... Nc6
{[%clk 0:02:47.6]} 13. Nf5 {[%clk 0:01:28.5]} 13... exf5 {[%clk 0:02:33.2]} 14.
Nd5 {[%clk 0:01:27.2]} 14... Qd8 {[%clk 0:02:29.6]} 15. exf5 {[%clk 0:01:22.8]}
15... b4 {[%clk 0:01:32.2]} 16. Bc4 {[%clk 0:00:51.2]} 16... bxa3 {[%clk
0:01:26.2]} 17. g6 {[%clk 0:00:43.2]} 17... axb2+ {[%clk 0:01:17.2]} 18. Kxb2
{[%clk 0:00:29.5]} 18... Na5 {[%clk 0:01:17.2]} 19. gxf7+ {[%clk 0:00:24.9]}
19... Kf8 {[%clk 0:01:17.2]} 20. Ba2 {[%clk 0:00:12.9]} 20... Bf6+ {[%clk
0:01:06.3]} 21. Nxf6 {[%clk 0:00:07.3]} 21... Bxf3 {[%clk 0:01:02.4]} 22. Ne8
{[%clk 0:00:02.9]} 22... Rb8+ {[%clk 0:00:57.9]} 23. Ka1 {[%clk 0:00:02.9]}
23... Bxd1 {[%clk 0:00:56.9]} 24. Bd4 {[%clk 0:00:02.6]} 24... Nf6 {[%clk
0:00:51.6]} 25. Bxf6 {[%clk 0:00:02.9]} 25... gxf6 {[%clk 0:00:51.2]} 26. Rg1
{[%clk 0:00:03.8]} 26... Ke7 {[%clk 0:00:35.5]} 27. Rg8 {[%clk 0:00:02.8]} 27...
Rxg8 {[%clk 0:00:24.7]} 28. fxg8=Q {[%clk 0:00:03.7]} 28... Qxe8 {[%clk
0:00:25.2]} 29. Qe6+ {[%clk 0:00:03.4]} 29... Kd8 {[%clk 0:00:25.4]} 30. Qxd6+
{[%clk 0:00:03.7]} 30... Kc8 {[%clk 0:00:18]} 31. Be6+ {[%clk 0:00:03.4]} 31...
Kb7 {[%clk 0:00:18.6]} 32. Bd5+ {[%clk 0:00:03.6]} 32... Nc6 {[%clk 0:00:18.7]}
33. Qb4+ {[%clk 0:00:01.9]} 33... Ka7 {[%clk 0:00:18.8]} 34. Qc5+ {[%clk
0:00:02]} 34... Rb6 {[%clk 0:00:19.3]} 35. Qd6 {[%clk 0:00:02.1]} 35... Qb8
{[%clk 0:00:18.3]} 36. Qd7+ {[%clk 0:00:02.2]} 36... Qb7 {[%clk 0:00:18.8]} 37.
Qe6 {[%clk 0:00:02]} 37... Rb1+ {[%clk 0:00:18.8]} 38. Ka2 {[%clk 0:00:02]}
38... Qb2# {[%clk 0:00:19.7]} 0-1

[Event "*** Titled Tuesday Blitz"]
[Site "Chess.com"]
[Date "2021.02.02"]
[Round "3"]
[White "gross-aleks"]
[Black "Saxar85"]
[Result "0-1"]
[WhiteElo "2561"]
[BlackElo "2801"]
[TimeControl "180+1"]
[EndTime "10:31:22 PST"]
[Termination "Saxar85 won by resignation"]

1. Nf3 {[%clk 0:02:56.3]} 1... d5 {[%clk 0:02:59.1]} 2. d4 {[%clk 0:02:54.4]}
2... Nf6 {[%clk 0:02:56.1]} 3. c4 {[%clk 0:02:53.7]} 3... e6 {[%clk 0:02:56]} 4.
Nc3 {[%clk 0:02:53]} 4... Nbd7 {[%clk 0:02:55.5]} 5. Bg5 {[%clk 0:02:50.9]} 5...
h6 {[%clk 0:02:51.7]} 6. Bh4 {[%clk 0:02:47.1]} 6... dxc4 {[%clk 0:02:37.3]} 7.
e3 {[%clk 0:02:42.6]} 7... a6 {[%clk 0:02:30.9]} 8. Bxc4 {[%clk 0:02:41.3]} 8...
b5 {[%clk 0:02:30.5]} 9. Bd3 {[%clk 0:02:33.6]} 9... Bb7 {[%clk 0:02:29.9]} 10.
a4 {[%clk 0:02:23.1]} 10... b4 {[%clk 0:02:28.5]} 11. Ne4 {[%clk 0:02:20.8]}
11... c5 {[%clk 0:02:20.3]} 12. Bxf6 {[%clk 0:02:07.6]} 12... gxf6 {[%clk
0:02:16.8]} 13. dxc5 {[%clk 0:01:47.1]} 13... Nxc5 {[%clk 0:02:15.4]} 14. Nxc5
{[%clk 0:01:46.4]} 14... Bxc5 {[%clk 0:02:14.8]} 15. Qc2 {[%clk 0:01:31.5]}
15... Rc8 {[%clk 0:02:12.7]} 16. Qe2 {[%clk 0:01:31.4]} 16... Qa5 {[%clk
0:01:57.9]} 17. b3 {[%clk 0:01:27.6]} 17... Rg8 {[%clk 0:01:55.1]} 18. O-O
{[%clk 0:01:18.5]} 18... Ke7 {[%clk 0:01:53.9]} 19. Rfd1 {[%clk 0:00:53.4]}
19... Bd6 {[%clk 0:01:52.2]} 20. e4 {[%clk 0:00:43.6]} 20... Qh5 {[%clk
0:01:36.7]} 21. Rac1 {[%clk 0:00:27.3]} 21... Rxc1 {[%clk 0:01:16.6]} 22. Rxc1
{[%clk 0:00:26.6]} 22... a5 {[%clk 0:01:15.7]} 23. g3 {[%clk 0:00:26.2]} 23...
Rc8 {[%clk 0:01:06.4]} 24. Rxc8 {[%clk 0:00:24.8]} 24... Bxc8 {[%clk 0:01:06.5]}
25. Nd4 {[%clk 0:00:24]} 25... Qxe2 {[%clk 0:01:04.1]} 26. Bxe2 {[%clk
0:00:24.9]} 26... Bb7 {[%clk 0:01:02.5]} 27. Bd3 {[%clk 0:00:24.8]} 27... Bc5
{[%clk 0:00:59.2]} 28. Ne2 {[%clk 0:00:20.1]} 28... f5 {[%clk 0:00:36.4]} 29.
exf5 {[%clk 0:00:19.5]} 29... Bd5 {[%clk 0:00:36.5]} 30. Bc2 {[%clk 0:00:19.4]}
30... exf5 {[%clk 0:00:33.8]} 31. Nf4 {[%clk 0:00:19]} 31... Be6 {[%clk
0:00:28.9]} 32. Kf1 {[%clk 0:00:18.6]} 32... Kf6 {[%clk 0:00:27.8]} 33. Ke2
{[%clk 0:00:18.7]} 33... Bd4 {[%clk 0:00:27]} 34. f3 {[%clk 0:00:18.2]} 34...
Bc8 {[%clk 0:00:22.2]} 35. Nh5+ {[%clk 0:00:16.9]} 35... Ke5 {[%clk 0:00:21.3]}
36. Nf4 {[%clk 0:00:17.8]} 36... Bg1 {[%clk 0:00:20.3]} 37. Nd3+ {[%clk
0:00:17.8]} 37... Kd4 {[%clk 0:00:19.8]} 38. h3 {[%clk 0:00:17.9]} 38... Ba6
{[%clk 0:00:18.4]} 39. Kd2 {[%clk 0:00:17.4]} 39... Be3+ {[%clk 0:00:18]} 40.
Ke2 {[%clk 0:00:17.2]} 40... f4 {[%clk 0:00:18]} 41. gxf4 {[%clk 0:00:17]} 41...
Bxf4 {[%clk 0:00:17.9]} 42. Bb1 {[%clk 0:00:17.1]} 42... Kc3 {[%clk 0:00:17.7]}
0-1